bitfinex/quotes_ETHUSD_20251212
["timestamp","ask_amount","ask_price","bid_price","bid_amount"]
[1765578234360,36.97681725,3091.9,3091.8,0.002]
[1765578234954,36.46681725,3091.9,3091.8,0.002]
[1765578235159,36.97681725,3091.9,3091.8,0.002]
[1765578235357,6.97681725,3091.9,3091.8,0.002]
[1765578235562,36.97681725,3091.9,3091.8,0.002]
[1765578236335,13.10123651,3091.9,3091.8,0.002]
[1765578236533,30.91778651,3091.9,3091.8,0.002]
[1765578236733,28.10978651,3091.9,3091.8,0.002]
[1765578237339,13.10123651,3091.9,3091.8,0.002]
[1765578237540,29.78218951,3091.9,3091.8,0.002]
[1765578238259,33.18718951,3091.9,3091.8,0.002]
[1765578238462,34.59549151,3091.9,3091.8,0.002]
[1765578239470,46.50623651,3091.9,3091.8,0.002]
[1765578240273,46.50623651,3091.9,3091.4,0.002]
[1765578240274,3.810504,3091.5,3091.4,0.002]
[1765578240572,3.810504,3091.5,3089.4,0.26256276]
[1765578240573,7.11039855,3090.6,3090.2,0.002]
[1765578240777,8.09609855,3090.6,3090.2,0.002]
[1765578241846,4.32609296,3090.6,3090.5,0.4608]
[1765578243147,5.40580439,3090.6,3090.5,0.002]
[1765578243365,5.88530439,3090.6,3090.5,0.002]
[1765578243553,5.40580439,3090.6,3090.5,0.002]
[1765578243847,5.40580439,3090.6,3090.5,0.4608]
[1765578245150,4.32709296,3090.6,3090.5,0.4608]
[1765578247358,0.405504,3091.2,3090.5,0.4608]
[1765578247359,6.46935144,3091.5,3090.5,0.9283]
[1765578247551,0.511,3091.4,3090.7,0.4588]
[1765578247776,0.58047529,3091.2,3090.7,0.4588]
[1765578247977,0.58047529,3091.0,3090.8,0.4675]
[1765578248155,0.511,3090.9,3090.8,0.4675]
[1765578248574,0.511,3090.9,3090.8,0.9263]
[1765578251289,0.58047529,3090.9,3090.8,0.9263]
[1765578251455,0.511,3090.9,3090.8,0.9263]
[1765578251952,3.23446647,3091.7,3090.8,7.05367725]
[1765578252286,3.23446647,3091.7,3091.0,6.12737725]
[1765578252487,3.23439635,3091.8,3091.6,0.6384]
[1765578252693,0.511,3091.7,3091.6,0.1796]
[1765578253056,0.511,3091.7,3091.6,0.6384]
[1765578253288,6.46846292,3092.0,3091.6,0.6384]
[1765578253491,1.09147529,3091.9,3091.7,0.4675]
[1765578254056,1.09147529,3091.9,3091.8,0.4588]
[1765578255491,4.32573254,3091.9,3091.8,0.4588]
[1765578255671,0.511,3091.9,3091.8,0.9263]
[1765578255927,3.23331608,3092.8,3091.8,4.16066186]
[1765578256076,0.511,3092.7,3091.9,0.4675]
[1765578256277,1.09147529,3092.7,3091.9,0.4675]
[1765578256477,1.09147529,3092.7,3092.6,0.4588]
[1765578257198,0.511,3092.7,3092.6,0.4588]
[1765578258295,1.09147529,3092.7,3092.6,0.4588]
[1765578258463,1.52395513,3092.7,3092.6,0.4588]
[1765578261177,4.17690047,3092.7,3092.6,0.4588]
[1765578261377,4.75737576,3092.7,3092.6,0.4588]
[1765578263098,1.52395513,3092.7,3092.6,0.4588]
[1765578265091,2.00665513,3092.7,3092.4,0.1796]
[1765578265295,0.1061,3092.9,3092.4,0.1796]
[1765578265296,0.51,3092.6,3092.4,0.1796]
[1765578265591,0.51,3092.6,3092.5,0.4546]
[1765578265792,0.51,3092.6,3092.5,0.9272]
[1765578265966,0.405504,3093.5,3092.5,0.9272]
[1765578266169,0.58047529,3093.2,3092.8,0.4726]
[1765578266499,0.43242687,3093.1,3092.8,0.4726]
[1765578266674,0.43242687,3093.1,3092.9,0.4546]
[1765578266869,0.43242687,3093.1,3093.0,0.4726]
[1765578267395,0.511,3093.1,3093.0,0.9272]
[1765578269899,0.51,3093.1,3093.0,0.9272]
[1765578273681,0.51,3093.1,3093.0,4.16030701]
[1765578276121,0.51,3093.1,3093.0,0.9272]
[1765578284788,0.9927,3093.1,3092.5,0.4546]
[1765578284997,0.51,3093.1,3093.0,0.4726]
[1765578285410,0.51,3093.1,3093.0,0.9272]
[1765578287325,0.51,3093.1,3093.0,4.16030701]
[1765578289409,0.001,3093.4,3093.0,7.39341402]
[1765578289610,0.001,3093.4,3093.3,0.6522]
[1765578290127,0.001,3093.4,3093.3,1.1068]
[1765578290699,0.001,3093.4,3093.3,4.33959345]
[1765578297228,0.001,3093.4,3093.3,10.45673816]
[1765578297524,0.001,3093.4,3093.3,11.06118532]
[1765578300308,0.001,3094.4,3094.0,0.4828]
[1765578300508,0.001,3094.4,3094.3,6.59994471]
[1765578300992,0.001,3094.4,3094.3,0.9774]
[1765578301316,0.001,3094.4,3094.3,7.09454471]
[1765578301714,0.001,3094.4,3094.3,10.3262934]
[1765578307023,0.001,3094.4,3094.3,10.82624456]
[1765578307360,0.001,3095.0,3094.6,0.4828]
[1765578307649,0.001,3095.0,3094.9,6.59994471]
[1765578307861,0.001,3095.0,3094.9,9.83106687]
[1765578308159,0.001,3095.0,3094.9,10.32566687]
[1765578310265,0.001,3095.0,3094.9,9.83106687]
[1765578310467,0.001,3095.0,3094.9,10.31449405]
[1765578310828,0.001,3095.3,3094.9,19.6515881]
[1765578311135,0.001,3095.3,3095.1,0.75684716]
[1765578311564,0.001,3095.3,3095.1,1.25144716]
[1765578312125,0.001,3095.3,3095.1,5.06283582]
[1765578313672,0.003,3095.5,3095.1,5.06283582]
[1765578313673,0.001,3096.0,3095.7,0.4828]
[1765578313847,0.001,3096.0,3095.8,6.58877189]
[1765578314347,0.001,3096.0,3095.8,10.31355471]
[1765578315844,0.001,3096.0,3095.8,10.31132618]
[1765578316044,0.001,3096.0,3095.1,0.1796]
[1765578316045,0.5683,3095.9,3095.1,0.1796]
[1765578316267,0.5796,3095.9,3095.2,6.10374336]
[1765578317582,0.5796,3095.9,3095.3,3.23070461]
[1765578318083,0.4812,3095.4,3095.3,3.23070461]
[1765578318679,0.0871,3095.9,3095.3,6.46140922]
[1765578318850,0.0871,3095.9,3095.7,6.10374336]
[1765578319058,0.003,3095.9,3095.8,0.4921]
[1765578319573,0.003,3095.9,3095.8,3.72228282]
[1765578320080,0.003,3095.9,3095.8,10.27722618]
[1765578320455,0.003,3095.9,3095.8,9.82602618]
[1765578321452,0.5027,3095.9,3095.8,3.23018282]
[1765578321658,0.9644,3095.9,3095.7,3.23028717]
[1765578321878,0.003,3095.9,3095.8,6.58804336]
[1765578323086,0.003,3095.9,3095.8,7.07644336]
[1765578323288,0.003,3095.9,3095.8,6.58804336]
[1765578323519,0.5027,3095.9,3095.8,6.10374336]
[1765578323857,0.5027,3095.9,3095.8,3.23018282]
[1765578324793,0.9644,3095.9,3095.8,3.23018282]
[1765578325290,0.9644,3095.9,3095.5,3.23048695]
[1765578325291,0.6887,3095.9,3095.5,3.23049265]
[1765578325492,0.6887,3095.9,3094.7,3.23131405]
[1765578325493,0.4957,3095.6,3094.7,3.23131405]
[1765578325689,7.14591865,3095.8,3094.2,0.1796]
[1765578325690,0.4919,3094.8,3094.3,6.10374336]
[1765578326013,0.58047529,3095.1,3094.3,3.23174582]
[1765578326198,0.6061,3094.4,3094.1,6.10374336]
[1765578326582,0.1953,3094.2,3094.1,6.10374336]
[1765578326782,0.1953,3094.2,3094.1,9.33570095]
[1765578327712,0.186,3094.9,3094.1,23.05565949]
[1765578327874,0.186,3094.9,3094.2,0.4843]
[1765578328784,0.6477,3094.9,3094.2,0.4843]
[1765578329311,0.186,3094.9,3094.2,0.9727]
[1765578329511,0.51,3095.0,3094.2,0.9727]
[1765578329811,0.51,3095.0,3094.4,6.46328852]
[1765578329979,0.9717,3095.0,3094.4,6.46328852]
[1765578332008,0.186,3094.9,3094.4,6.46328852]
[1765578333291,0.6477,3094.9,3094.4,6.46328852]
[1765578334312,0.6477,3094.9,3094.4,6.95168852]
[1765578334507,0.6477,3094.9,3094.4,6.46328852]
[1765578335115,0.6477,3094.9,3094.3,6.46341911]
[1765578335294,0.6477,3094.9,3094.4,0.03231644]
[1765578335695,0.6477,3094.9,3094.4,0.52071644]
[1765578336422,0.51,3095.1,3094.5,6.46307964]
[1765578336917,0.4617,3095.0,3094.5,6.46307964]
[1765578337280,0.186,3094.9,3094.5,6.46307964]
[1765578337696,0.6477,3094.9,3094.5,6.46307964]
[1765578338135,0.6477,3094.9,3094.3,6.46349738]
[1765578338330,0.186,3094.9,3094.3,6.46349738]
[1765578338486,0.4617,3094.8,3094.3,3.23174869]
[1765578339006,0.4617,3094.8,3094.3,6.46349738]
[1765578340281,0.4617,3094.8,3094.2,6.46370628]
[1765578340487,0.4617,3094.8,3094.2,9.69555942]
[1765578344691,0.4617,3094.8,3094.2,3.23185314]
[1765578344692,0.4997,3094.3,3094.2,3.23185314]
[1765578345211,0.4617,3094.6,3094.2,6.94800628]
[1765578345518,0.186,3094.9,3094.2,6.94800628]
[1765578345519,0.4997,3094.3,3094.2,3.23185314]
[1765578345901,0.9614,3094.3,3094.2,3.23185314]
[1765578347419,0.9614,3094.3,3093.4,0.51]
[1765578347420,0.9614,3094.3,3093.3,0.1796]
[1765578347722,0.1165,3094.1,3093.7,3.23233845]
[1765578348025,0.1165,3094.1,3093.5,3.23257418]
[1765578348026,0.1165,3094.1,3093.1,3.72134846]
[1765578348316,0.4958,3093.6,3093.2,6.46579592]
[1765578348706,0.9575,3093.6,3093.2,6.46579592]
[1765578350428,0.4958,3093.6,3093.2,6.46579592]
[1765578350608,0.4821,3093.5,3093.2,3.23289796]
[1765578350926,0.4821,3093.5,3093.2,6.46579592]
[1765578351496,0.4944,3093.3,3093.2,3.23289796]
[1765578351996,0.4944,3093.3,3093.1,3.23300248]
[1765578353631,0.51,3093.6,3093.2,0.4731]
[1765578354128,0.9921,3093.6,3093.3,6.4655869]
[1765578355718,0.4944,3093.4,3093.3,3.23279345]
[1765578356044,0.4944,3093.4,3093.1,6.46590412]
[1765578358300,0.0932,3093.2,3093.1,3.23290164]
[1765578358501,0.4821,3093.4,3093.1,6.46590412]
[1765578362538,0.1926,3094.0,3093.4,6.4653779]
[1765578362723,1.1847,3094.0,3093.4,6.4653779]
[1765578363236,0.4821,3093.9,3093.4,6.4653779]
[1765578363735,0.4944,3093.5,3093.4,3.23268895]
[1765578364731,0.4944,3093.5,3093.2,6.46565317]
[1765578370347,0.7026,3094.0,3093.4,0.4731]
[1765578370542,0.4821,3093.9,3093.4,0.4731]
[1765578371050,0.4944,3093.5,3093.2,6.93195317]
[1765578371248,0.4944,3093.5,3093.2,6.46565317]
[1765578374857,0.4944,3093.5,3093.2,6.93195317]
[1765578376123,0.4944,3093.5,3093.2,6.46565317]
[1765578377829,0.9765,3093.5,3093.2,6.46565317]
[1765578378235,0.0932,3093.3,3093.2,3.23279526]
[1765578378755,0.5646,3093.3,3093.2,3.23279526]
[1765578379130,0.0932,3093.3,3093.0,0.002]
[1765578379335,0.4957,3093.2,3093.0,0.002]
[1765578379923,0.4714,3093.5,3093.1,0.4542]
[1765578380130,0.51,3093.8,3093.2,0.4542]
[1765578380330,0.51,3093.8,3093.7,0.4542]
[1765578380955,0.976,3093.8,3093.3,6.11585259]
[1765578381160,0.486,3093.7,3093.4,6.4653779]
[1765578381461,1.462,3093.8,3093.4,6.4653779]
[1765578381626,0.996,3093.8,3093.4,6.4653779]
[1765578382026,0.486,3093.8,3093.4,6.4653779]
[1765578388082,0.486,3094.6,3093.7,0.4952]
[1765578388375,0.486,3094.6,3093.9,6.11585259]
[1765578388540,0.51,3094.5,3093.9,6.11585259]
[1765578388939,0.486,3094.4,3093.9,6.11585259]
[1765578389937,0.486,3094.4,3093.9,6.56945259]
[1765578390240,0.511,3094.6,3094.0,6.4641241]
[1765578390446,0.76647529,3094.9,3094.0,6.4641241]
[1765578390447,0.186,3094.9,3094.0,6.4641241]
[1765578390658,0.997,3094.8,3094.2,6.11585259]
[1765578390859,0.486,3094.8,3094.2,6.11585259]
[1765578391153,0.511,3095.0,3094.7,0.4952]
[1765578391355,0.486,3095.2,3094.7,0.4952]
[1765578391556,0.511,3095.1,3094.7,0.4952]
[1765578391957,0.997,3095.1,3094.7,0.4952]
[1765578392370,0.997,3095.1,3094.8,3.23122657]
[1765578392371,0.486,3095.0,3094.8,3.23122657]
[1765578392551,0.511,3095.1,3094.8,3.23122657]
[1765578392874,0.997,3095.1,3094.8,6.46245314]
[1765578393670,0.511,3095.1,3094.8,6.46245314]
[1765578393871,3.23101497,3096.0,3094.8,6.46245314]
[1765578394175,0.486,3095.3,3094.8,6.46245314]
[1765578394574,0.486,3095.3,3094.7,6.46266196]
[1765578396547,0.486,3095.3,3094.6,3.2314354]
[1765578396548,0.5951,3094.8,3094.6,3.2314354]
[1765578396790,0.486,3095.3,3094.6,3.2314354]
[1765578396791,0.511,3095.2,3094.6,9.67043153]
[1765578397096,0.511,3095.2,3094.7,0.9488]
[1765578397767,0.997,3095.2,3094.7,0.4952]
[1765578398694,0.997,3095.2,3094.8,6.46245314]
[1765578399179,0.486,3095.2,3094.8,6.46245314]
[1765578399393,0.486,3095.2,3094.8,7.01704607]
[1765578402475,0.466,3094.9,3094.8,3.7858195]
[1765578403688,0.466,3094.9,3094.2,3.74280996]
[1765578403689,1.0811,3094.9,3093.7,6.11585259]
[1765578403854,0.1829,3094.7,3094.5,3.23145794]
[1765578404050,0.511,3094.6,3094.5,3.23145794]
[1765578404277,1.4601,3094.6,3094.5,3.23145794]
[1765578405569,1.4601,3094.6,3094.2,6.46370628]
[1765578407172,1.4601,3094.6,3094.2,3.23185314]
[1765578407173,0.466,3094.3,3094.2,3.23185314]
[1765578408294,0.7166,3094.5,3094.2,3.23185314]
[1765578408496,0.466,3094.3,3094.2,3.23185314]
[1765578408787,0.466,3094.3,3093.9,6.46433304]
[1765578408967,0.466,3094.3,3093.9,6.91793304]
[1765578410684,0.9549,3094.3,3093.7,3.23234628]
[1765578410883,0.9549,3094.3,3093.8,0.48]
[1765578412763,0.9999,3094.5,3094.3,3.23174869]
[1765578413491,0.9747,3094.4,3094.3,3.23174869]
[1765578415005,0.4858,3094.4,3094.0,6.4641241]
[1765578415294,0.511,3094.5,3094.0,6.4641241]
[1765578415497,0.511,3094.5,3094.4,0.4694]
[1765578415666,0.9968,3094.5,3094.1,0.6596]
[1765578416399,0.9968,3094.5,3094.0,6.4641241]
[1765578416599,0.4889,3094.4,3094.0,6.4641241]
[1765578417198,0.4889,3094.4,3094.0,6.9441241]
[1765578417591,0.511,3094.5,3094.0,6.9441241]
[1765578417896,0.9999,3094.5,3094.0,6.9441241]
[1765578419392,0.511,3094.5,3094.0,6.9441241]
[1765578419598,0.4889,3094.4,3094.0,6.9441241]
[1765578421504,0.511,3094.5,3094.0,10.17618615]
[1765578421707,0.511,3094.5,3094.0,6.9441241]
[1765578421900,0.511,3094.5,3094.1,0.48]
[1765578422411,0.511,3094.5,3094.1,0.6596]
[1765578422936,0.1291,3094.9,3094.4,0.4694]
[1765578423248,0.4858,3094.2,3094.0,6.4641241]
[1765578423730,0.4858,3094.2,3093.8,6.46454198]
[1765578423932,0.4858,3094.2,3093.8,6.94454198]
[1765578424139,0.4858,3094.2,3093.8,6.46454198]
[1765578424299,0.4889,3094.1,3093.8,6.46454198]
[1765578424622,0.511,3094.3,3093.8,6.46454198]
[1765578424825,0.4889,3094.2,3093.8,6.46454198]
[1765578425327,0.4858,3093.9,3093.8,3.23227099]
[1765578425828,0.9747,3093.9,3093.4,0.58047529]
[1765578426325,0.9747,3093.9,3093.4,0.48]
[1765578428033,0.9747,3093.9,3093.5,9.69775335]
[1765578428830,0.9747,3093.9,3093.5,10.17775335]
[1765578430922,0.511,3094.3,3093.8,0.4694]
[1765578431343,0.511,3094.3,3093.8,0.9494]
[1765578431500,0.9999,3094.3,3093.8,0.9494]
[1765578431826,0.9999,3094.3,3093.8,0.4694]
[1765578432026,0.1291,3094.9,3093.8,0.4694]
[1765578432334,0.4889,3094.6,3093.9,0.48]
[1765578432937,0.4889,3094.6,3093.7,0.48]
[1765578436941,0.4889,3094.6,3093.8,6.46454198]
[1765578443563,0.511,3094.5,3093.9,0.4612]
[1765578443930,0.9632,3094.5,3093.9,0.4612]
[1765578444136,0.9632,3094.5,3094.0,6.4641241]
[1765578444336,0.4522,3094.4,3094.0,6.4641241]
[1765578446259,0.4522,3094.4,3093.8,6.46454198]
[1765578446432,0.4631,3094.1,3093.8,6.46454198]
[1765578446833,0.1291,3094.9,3094.0,0.4668]
[1765578447062,0.9622,3094.8,3094.0,0.4668]
[1765578447562,0.4522,3094.7,3094.0,0.4668]
[1765578448467,0.4522,3094.7,3094.1,6.46391518]
[1765578451874,0.51,3094.6,3094.2,6.29278035]
[1765578452373,0.51,3094.6,3094.2,6.75398035]
[1765578452871,0.9622,3094.6,3094.2,6.75398035]
[1765578453469,0.51,3094.6,3094.3,3.23174869]
[1765578453671,0.1291,3094.9,3093.3,3.23279345]
[1765578453672,0.4631,3094.3,3093.3,3.23279345]
[1765578453876,0.9741,3094.2,3093.2,3.23286158]
[1765578454049,0.9741,3094.2,3093.0,0.002]
[1765578454050,0.511,3094.1,3093.0,0.002]
[1765578454256,0.9632,3094.1,3093.1,3.23290047]
[1765578454771,0.4522,3094.0,3093.1,6.46590295]
[1765578455144,0.1934,3093.9,3093.1,6.46590295]
[1765578455364,0.1934,3093.9,3093.2,6.11318035]
[1765578455563,0.4522,3093.8,3093.3,6.4655869]
[1765578456077,0.4522,3093.8,3093.3,6.9267869]
[1765578456583,0.4522,3093.8,3093.3,6.4655869]
[1765578459176,0.4522,3093.8,3093.2,6.46579592]
[1765578466934,0.4522,3093.8,3093.2,9.69869388]
[1765578467148,0.1934,3093.9,3093.3,0.4612]
[1765578469038,0.1934,3093.9,3093.4,6.4653779]
[1765578470357,0.511,3094.1,3093.4,6.4653779]
[1765578470650,0.511,3094.1,3093.5,0.4637]
[1765578470845,0.4928,3094.1,3093.5,0.4637]
[1765578471049,0.511,3094.0,3093.4,12.58051991]
[1765578471523,0.511,3094.0,3093.4,13.04421991]
[1765578472558,0.4928,3094.1,3093.4,13.04421991]
[1765578472854,0.511,3094.0,3093.4,13.04421991]
[1765578473453,0.4928,3094.1,3093.4,13.04421991]
[1765578473656,0.4928,3094.1,3093.4,12.58051991]
[1765578473657,0.511,3093.9,3093.4,12.58051991]
[1765578474154,0.51,3093.8,3093.5,0.4637]
[1765578478157,0.51,3093.8,3093.4,12.58051991]
[1765578478464,0.51,3093.8,3093.5,0.4637]
[1765578481166,0.51,3093.8,3093.6,6.4649599]
[1765578481940,0.4928,3094.5,3093.7,6.57574201]
[1765578482239,0.51,3094.4,3093.7,7.03944201]
[1765578482456,0.51,3094.4,3093.8,0.4637]
[1765578482654,0.4928,3094.3,3093.8,0.4637]
[1765578484149,0.4928,3094.3,3093.9,3.23216652]
[1765578484453,0.4928,3094.3,3093.9,6.46433304]
[1765578487052,0.4928,3094.5,3093.9,0.4637]
[1765578487251,0.58047529,3094.8,3093.8,6.46454198]
[1765578487252,0.51,3094.2,3093.8,6.46454198]
[1765578487757,1.0028,3094.2,3093.8,6.46454198]
[1765578487937,1.0028,3094.2,3093.8,6.92824198]
[1765578488138,0.6219,3094.9,3094.1,0.6402]
[1765578488463,1.0028,3094.8,3094.2,6.11514201]
[1765578488664,0.4928,3094.8,3094.2,6.57884201]
[1765578488965,0.51,3094.7,3094.3,0.4637]
[1765578489161,0.51,3094.7,3094.4,3.23164426]
[1765578489337,1.0028,3094.7,3094.4,3.23164426]
[1765578490146,0.4928,3094.6,3094.4,3.23164426]
[1765578490751,0.51,3094.7,3094.4,6.46328852]
[1765578490951,1.0028,3094.7,3094.4,6.46328852]
[1765578491166,1.0028,3094.7,3094.3,6.46349738]
[1765578491373,0.4928,3094.6,3094.3,3.23174869]
[1765578492245,0.51,3094.7,3094.5,0.4606]
[1765578492446,0.4795,3094.6,3094.4,6.11514201]
[1765578492874,0.9723,3094.6,3094.4,6.11514201]
[1765578493045,0.9723,3094.6,3094.5,3.23153982]
[1765578493374,0.4928,3094.6,3094.5,3.23153982]
[1765578493587,0.9723,3094.6,3094.5,3.23153982]
[1765578495644,1.4823,3094.6,3094.5,3.23153982]
[1765578496170,0.9895,3094.6,3094.5,3.23153982]
[1765578496766,0.1291,3094.9,3094.5,3.69213982]
[1765578497071,0.51,3094.8,3094.7,6.11514201]
[1765578497467,0.51,3094.8,3094.7,6.57574201]
[1765578497672,0.51,3094.8,3094.7,9.80707299]
[1765578498776,4.20082236,3095.8,3094.7,13.03840397]
[1765578499072,0.4952,3095.3,3094.7,13.53270397]
[1765578499278,0.51,3095.2,3094.7,13.53270397]
[1765578499475,0.51,3095.2,3094.7,13.03840397]
[1765578499652,0.4952,3095.1,3094.7,3.69193098]
[1765578499859,0.4938,3094.8,3094.7,3.23133098]
[1765578500098,0.58047529,3095.6,3094.7,7.34039843]
[1765578500396,1.0052,3095.5,3095.1,6.11009499]
[1765578500797,0.4728,3095.2,3094.9,6.11009499]
[1765578501001,0.4728,3095.1,3094.9,6.11009499]
[1765578501495,0.4567,3095.3,3094.9,6.11009499]
[1765578501692,0.4567,3095.3,3095.0,6.46203554]
[1765578503606,0.51,3095.4,3095.0,6.46203554]
[1765578503899,0.51,3095.4,3094.9,6.46224432]
[1765578505095,0.76947529,3095.9,3094.9,6.46224432]
[1765578505299,0.51,3095.8,3094.9,6.95694432]
[1765578505680,0.4567,3095.7,3094.9,6.95694432]
[1765578507202,0.51,3095.6,3094.9,6.95694432]
[1765578507680,0.4567,3095.5,3094.9,6.95694432]
[1765578511703,0.4567,3095.5,3094.8,0.4947]
[1765578512705,0.51,3095.4,3094.8,0.4947]
[1765578513305,0.4567,3095.5,3094.9,6.46224432]
[1765578513610,0.51,3095.4,3094.9,6.46224432]
[1765578513779,0.51,3095.4,3094.9,6.95694432]
[1765578514098,0.4567,3095.4,3094.9,6.95694432]
[1765578514304,0.51,3095.3,3094.9,6.95694432]
[1765578517705,0.9667,3095.3,3094.9,6.95694432]
[1765578518707,0.4567,3095.3,3094.9,6.95694432]
[1765578519180,0.51,3095.2,3094.9,6.95694432]
[1765578519881,0.51,3095.2,3094.9,0.4947]
[1765578520207,0.9667,3095.2,3094.7,10.18869294]
[1765578520507,0.9667,3095.2,3094.8,0.4947]
[1765578521107,0.51,3095.2,3094.8,0.4947]
[1765578522106,0.51,3095.2,3094.9,6.46224432]
[1765578522507,0.9667,3095.2,3094.9,6.46224432]
[1765578527103,0.4728,3095.0,3094.9,3.23112216]
[1765578527615,0.51,3095.2,3094.9,6.46224432]
[1765578527909,0.51,3095.2,3094.9,6.92044432]
[1765578528209,0.9667,3095.2,3094.9,6.92044432]
[1765578531010,0.51,3095.2,3095.1,0.467]
[1765578531584,0.51,3095.2,3095.1,0.9513]
[1765578532085,0.4755,3095.7,3095.1,0.9513]
[1765578532519,0.51,3095.6,3095.2,0.4843]
[1765578533215,0.9855,3095.6,3095.3,6.46140922]
[1765578536320,0.4755,3095.6,3095.3,6.46140922]
[1765578536518,0.51,3095.5,3095.3,6.46140922]
[1765578537012,0.699,3095.9,3095.0,6.46203554]
[1765578537217,0.51,3095.8,3095.0,10.17735331]
[1765578537422,0.189,3095.9,3095.2,6.10782739]
[1765578537623,0.51,3095.8,3095.7,0.467]
[1765578538620,0.51,3095.8,3095.7,3.69728717]
[1765578539231,3.403,3095.6,3093.6,0.002]
[1765578539398,1.86716527,3095.5,3094.2,6.10782739]
[1765578539603,0.512,3095.4,3094.9,3.23110499]
[1765578539924,0.9875,3095.4,3094.9,3.23110499]
[1765578540112,0.0738,3095.0,3094.9,3.23110499]
[1765578540310,0.0738,3095.0,3094.5,6.59212739]
[1765578540510,3.23028717,3095.7,3093.7,1.55100515]
[1765578540511,0.001,3096.0,3094.9,6.92924432]
[1765578540826,0.512,3095.8,3095.2,0.467]
[1765578541209,0.003,3095.9,3095.7,0.467]
[1765578541420,0.515,3095.9,3095.8,0.467]
[1765578541599,0.515,3095.9,3095.5,0.4843]
[1765578542733,0.515,3095.9,3095.6,6.46078304]
[1765578544032,0.0738,3095.7,3095.6,3.23039152]
[1765578544845,0.0738,3095.7,3095.4,3.23051572]
[1765578544846,0.0738,3095.7,3095.2,6.46161798]
[1765578545052,0.0738,3095.7,3095.2,6.94591798]
[1765578545333,0.0738,3095.7,3095.3,0.4843]
[1765578545636,1.1811,3095.9,3095.3,0.4843]
[1765578545637,0.515,3095.9,3095.6,0.467]
[1765578547415,0.515,3095.9,3095.7,3.23028717]
[1765578547805,0.0738,3095.8,3095.7,3.23028717]
[1765578549838,0.2656,3095.8,3095.5,6.46099176]
[1765578550030,0.1918,3095.8,3095.5,6.46099176]
[1765578551345,0.6673,3095.8,3095.3,6.46140922]
[1765578552245,0.6673,3095.8,3095.3,6.94570922]
[1765578554045,0.6673,3095.8,3095.4,0.4843]
[1765578556046,0.6673,3095.8,3095.5,6.46099176]
[1765578556839,0.0738,3095.6,3095.5,3.23049588]
[1765578558741,0.003,3095.9,3095.5,6.57482739]
[1765578558943,0.511,3095.7,3095.6,0.4846]
[1765578559332,0.511,3095.7,3095.6,0.9715]
[1765578560140,0.511,3095.7,3095.6,4.20189152]
[1765578561936,0.003,3095.9,3095.6,13.53759147]
[1765578561937,0.514,3095.9,3095.6,13.53759147]
[1765578564050,0.514,3095.9,3095.7,6.10561067]
[1765578565134,0.514,3095.9,3095.8,3.23018282]
[1765578565537,0.003,3095.9,3095.8,3.71148282]
[1765578565737,0.514,3095.9,3095.8,3.71148282]
[1765578566043,0.5689,3095.9,3095.8,3.23018282]
[1765578573354,0.514,3095.9,3095.8,3.23018282]
[1765578574357,0.514,3095.9,3095.8,4.18178282]
[1765578577460,0.003,3095.9,3095.8,3.71148282]
[1765578579126,0.0579,3095.9,3095.8,3.23018282]
[1765578579331,0.7399,3095.9,3095.2,9.69234133]
[1765578579532,0.511,3095.8,3095.2,9.69234133]
[1765578579733,1.0094,3095.8,3095.2,9.69234133]
[1765578579943,1.0094,3095.8,3095.2,10.16264133]
[1765578581535,1.0094,3095.8,3095.3,0.4703]
[1765578583665,0.511,3095.8,3095.4,3.23060024]
[1765578583837,0.0525,3095.5,3095.3,3.23068767]
[1765578584165,1.0616,3095.4,3095.3,3.23068767]
[1765578585667,1.0616,3095.4,3095.0,6.46203554]
[1765578585873,0.5871,3095.4,3095.0,6.46203554]
[1765578589374,0.4745,3095.1,3095.0,3.23101777]
[1765578589872,0.5506,3095.1,3095.0,3.23101777]
[1765578590068,0.5506,3095.1,3094.6,6.4628708]
[1765578590979,0.5506,3095.1,3094.6,6.9131708]
[1765578591274,0.5506,3095.1,3094.7,0.4503]
[1765578591441,0.4745,3095.1,3094.7,0.4503]
[1765578592245,0.4745,3095.1,3094.8,6.46245314]
[1765578592676,0.0761,3095.3,3094.8,6.46245314]
[1765578592880,0.0761,3095.3,3094.9,0.4503]
[1765578593786,0.0761,3095.3,3095.0,3.23101777]
[1765578594642,0.4706,3095.1,3095.0,3.23101777]
[1765578596478,0.4706,3095.1,3094.8,6.46245314]
[1765578596980,0.4706,3095.1,3094.8,6.91275314]
[1765578598486,0.4706,3095.1,3094.8,6.46245314]
[1765578598779,0.5506,3095.1,3094.8,6.46245314]
[1765578599281,0.4706,3095.1,3094.8,6.46245314]
[1765578600787,0.511,3095.4,3094.8,3.23122657]
[1765578600978,1.0009,3095.4,3094.8,6.46245314]
[1765578601476,1.0009,3095.4,3094.8,6.91275314]
[1765578601677,0.4899,3095.3,3094.8,6.46245314]
[1765578602258,0.0609,3094.9,3094.8,3.23122657]
[1765578602663,0.4856,3095.2,3094.8,6.46245314]
[1765578603462,0.4856,3095.2,3094.7,6.46266196]
[1765578604763,0.0652,3094.8,3094.7,3.23133098]
[1765578605180,0.511,3094.9,3094.7,6.46266196]
[1765578605488,0.511,3094.9,3094.7,6.94466196]
[1765578605694,0.511,3094.9,3094.8,0.482]
[1765578606989,0.511,3094.9,3094.8,0.9323]
[1765578607668,0.511,3094.9,3094.8,4.16352657]
[1765578609295,0.511,3094.9,3094.8,3.71322657]
[1765578611614,0.58047529,3095.8,3094.8,0.482]
[1765578611760,1.0009,3095.7,3094.6,9.6943062]
[1765578611965,1.0009,3095.7,3094.7,0.4503]
[1765578612307,0.1934,3095.9,3095.6,0.482]